Cogmind - Beta 17.1 @@@ ROGUE MODE // 2026.09.22 @ 23:44:26 Player: MORONI274 Result: Destroyed by G-34 Mercenary with Small Laser Performance ------------- Evolutions (1) 500 Regions Visited (2) 400 Robots Destroyed (36) 180 Value Destroyed (1039) 1039 Prototype IDs (3) 60 Alien Tech Used (0) 0 Bonus (0) 0 TOTAL SCORE: 2179 Bonus ------- None Cogmind --------- Core Integrity 0/400 Matter 300/300 Energy 100/100 System Corruption 0% Temperature Cool (6) Movement Treading (225) Ox1 Location -9/Materials Parts ------- > --- POWER (1) -------- (None) > --- PROPULSION (2) --- Advanced Treads > --- UTILITY (4) ------ Large Storage Unit Visual Processing Unit > --- WEAPON (2) ------- Maul > --- INVENTORY (15) --- Light Treads Improved Treads Advanced Treads Advanced Treads Wheel Wheel Large Battery (200) Signal Interpreter Terrain Scanner Propulsion Shielding Field Recycling Unit (0) EM Shotgun Light Assault Rifle Improved Light Cannon Grenade Launcher Peak State ------------ > --- POWER ------------ Light Nuclear Core > --- PROPULSION ------- Advanced Treads Advanced Treads > --- UTILITY ---------- Large Storage Unit Large Matter Pod Visual Processing Unit Hacking Suite > --- WEAPON ----------- EM Shotgun Maul > --- INVENTORY -------- Light Treads Light Treads Improved Treads Wheel Wheel Large Battery Structural Scanner Signal Interpreter Propulsion Shielding Field Recycling Unit Light Assault Rifle Improved Light Cannon Grenade Launcher [Rating: 21] Favorites ----------- Power Ion Engine Engine Ion Engine Power Core Light Nuclear Core Propulsion Light Treads Treads Light Treads Wheel Wheel Utility Visual Processing Unit Device Seismic Detector Storage Medium Storage Unit Processor Visual Processing Unit Hackware Hacking Suite Protection Light Armor Plating Weapon Light Assault Rifle Energy Gun EM Shotgun Ballistic Gun Light Assault Rifle Ballistic Cannon Improved Light Cannon Launcher Grenade Launcher Impact Weapon Maul Build | -11 -10 -9 ------- Run | Yrd Mat Mat Slots Evolved 2 | . . 2 Power . | . . . Propulsion . | . . . Utility 2 | . . 2 Weapon . | . . . Parts Attached 32 | 7 5 20 Power 4 | 1 1 2 Engine 3 | 1 1 1 Core 1 | . . 1 Reactor . | . . . Propulsion 8 | 2 . 6 Treads 7 | 2 . 5 Leg . | . . . Wheel 1 | . . 1 Hover . | . . . Flight . | . . . Utility 13 | 1 4 8 Device 4 | . . 4 Storage 6 | 1 3 2 Processor 1 | . . 1 Hackware 1 | . 1 . Protection 1 | . . 1 Artifact . | . . . Weapon 7 | 3 . 4 Energy Gun 2 | 1 . 1 Energy Cannon . | . . . Ballistic Gun 2 | 2 . . Ballistic Cannon 1 | . . 1 Launcher 1 | . . 1 Special Weapon . | . . . Impact Weapon 1 | . . 1 Slashing Weapon . | . . . Piercing Weapon . | . . . Special Melee Weapon . | . . . Unidentified Prototypes . | . . . Parts Lost 10 | . . 10 Power 2 | . . 2 Propulsion 1 | . . 1 Utility 5 | . . 5 Weapon 2 | . . 2 Highest Loss Streak 3 | . . 3 To Critical Strikes . | . . . Average Backups 10 | 2 8 11 Power 1 | . 1 1 Propulsion 3 | 1 3 4 Utility 3 | . 2 4 Weapon 1 | . . 2 Tool/Special . | . . . Unused Backups 10 | . . 10 Power 1 | . . 1 Propulsion 4 | . . 4 Utility 3 | . . 3 Weapon 2 | . . 2 Tool/Special . | . . . Average Slot Usage (%) 96 | . 99 94 Engine 8 | . 14 6 Core 2 | . . 3 Treads 22 | . 28 19 Wheel 1 | . . 2 Device 4 | . . 6 Storage 18 | . 19 18 Processor 7 | . . 11 Hackware 7 | . 8 7 Ballistic Gun 11 | . 28 4 Ballistic Cannon 3 | . . 5 Impact Weapon 6 | . . 9 Peak Build Rating 21 | 6 10 21 Average Rating 13 | 4 8 15 On Entrance 5 | . 6 10 Avg Prop Armor Cover (%) 14 | . . 14 Naked Turns . | . . . Heaviest Build 36 | 12 17 36 Greatest Support 45 | 40 40 45 Greatest Overweight (x) 1 | . . 1 Average Overweight (x) . | . . . Largest Inventory Capacity 15 | 8 10 15 Average Capacity 10 | 7 9 11 Most Carried 15 | 5 10 15 Average Carried 10 | 2 8 11 Final Capacity 15 | 8 10 15 Final Carried 15 | 4 10 15 Class Distribution -------------------- 84% | Mutant 15% | Scavenger-Mutant Dominant Class ---------------- Mutant | -10/Materials Mutant | -9/Materials Resources | -11 -10 -9 ----------- Run | Yrd Mat Mat Matter Collected 1060 | 188 278 594 Remotely . | . . . Salvage Created 1043 | . 356 687 Parts 57 | . 18 39 Haulers Intercepted . | . . . Recyclers Shooed 1 | . . 1 Parts Field Recycled . | . . . Retrieved Matter . | . . . Parts Self-Destructed . | . . . Prevented . | . . . Parts Restored . | . . . Kills | -11 -10 -9 ------- Run | Yrd Mat Mat Combat Hostiles Destroyed 28 | . 6 22 Melee 5 | . . 5 Guns 9 | . 6 3 Cannons 6 | . . 6 AOE 5 | . . 5 Classes Destroyed 7 | . 5 2 Builder 1 | . . 1 Recycler 1 | . 1 . Operator 1 | . 1 . Watcher 5 | . 2 3 Swarmer 7 | . 2 5 Grunt 15 | . 4 11 Sentry 6 | . . 6 Best Kill Streak 4 | . 2 4 Combat Bots Only 3 | . 2 3 Max Kills in Single Turn 2 | . 1 2 Gunslinging . | . . . Exploded 2 | . . 2 Melee 1 | . . 1 Uniques/NPCs Destroyed . | . . . Combat | -11 -10 -9 -------- Run | Yrd Mat Mat Hostile Shots Fired 272 | . 68 204 Missed 82 | . 20 62 Hits 190 | . 48 142 Projectile 190 | . 48 142 Critical Strikes 4 | . 1 3 Damage Taken 2102 | . 495 1607 Core 434 | . 32 402 Absorbed by Shields . | . . . Regen/Repaired (Parts) 255 | . . 255 Core Remaining (%) 93 | 100 87 . Volleys Fired 84 | . 43 41 Largest 2 | . 2 2 Hottest 50 | . 40 50 Shots Fired 128 | . 86 42 Gun 98 | . 86 12 Cannon 23 | . . 23 Launcher 7 | . . 7 Special . | . . . Kinetic 116 | . 86 30 Thermal . | . . . Explosive 7 | . . 7 Electromagnetic 5 | . . 5 Robot Hit Streak 9 | . 9 6 Robot Miss Streak 7 | . 7 3 Penetration Max . | . . . Secondary Targets . | . . . Shots Hit Robots 94 | . 47 47 Core Hits 50 | . 26 24 Critical Kills 2 | . 1 1 Critical Parts Destroyed 5 | . . 5 Critical Strikes 9 | . 1 8 Destroy 1 | . 1 . Blast 2 | . . 2 Smash 6 | . . 6 Melee Attacks 64 | . . 64 Impact 64 | . . 64 Slashing . | . . . Piercing . | . . . Sneak Attacks 2 | . . 2 Combat Hostiles . | . . . Follow-up Attacks . | . . . Damage Inflicted 2123 | . 373 1750 Guns 445 | . 373 72 Cannons 255 | . . 255 Explosions 418 | . . 418 Melee 1005 | . . 1005 Ramming . | . . . Kinetic 650 | . 373 277 Thermal 84 | . . 84 Explosive 334 | . . 334 Electromagnetic 50 | . . 50 Impact 1005 | . . 1005 Slashing . | . . . Piercing . | . . . Highest Corruption 1 | . 1 . Average Corruption 1 | . 1 . Corruption Purged . | . . . Corruption Blocked . | . . . Effects 3 | . 3 . Message Errors 1 | . 1 . Matter Fused 2 | . 2 . Overload Shots . | . . . Overflow Damage 362 | . . 362 Projectiles . | . . . Explosions 15 | . . 15 Melee 347 | . . 347 Knockbacks 8 | . . 8 Impact 6 | . . 6 Kinetic . | . . . Secondary 2 | . . 2 Self-Inflicted Damage 19 | . . 19 Shots 1 | . . 1 Rammed . | . . . Targets Rammed . | . . . Kicked . | . . . Crushed . | . . . Highest Temperature 27 | . 27 19 Average Temperature 7 | . 9 4 Received Heat Transfer 714 | . 192 522 Siege Activations . | . . . Martial Activations . | . . . Shielding Activations . | . . . Robots Disrupted . | . . . Combat Hostiles . | . . . Robots Corrupted 5 | . . 5 Combat Hostiles 3 | . . 3 Parts Fried 5 | . . 5 Impact Corruptions 15 | . . 15 Robots Melted . | . . . Combat Hostiles . | . . . Parts Melted . | . . . Heat Transferred 100 | . . 100 Parts Sabotaged . | . . . Parts Stolen . | . . . Parts Stripped . | . . . Power Chain Reactions 1 | . . 1 Alert | -11 -10 -9 ------- Run | Yrd Mat Mat Maximum Alert Level 1 | . . 1 Low Security (%) 95 | 100 100 93 Level 1 4 | . . 6 Level 2 . | . . . Level 3 . | . . . Level 4 . | . . . Level 5 . | . . . High Security . | . . . Max Security . | . . . Peak Influence 219 | . 110 219 Initial . | . . . Average 63 | . 23 84 Influence Increases 1046 | . 208 838 Destroy 0b10 Robot/C 560 | . 120 440 Destroy 0b10 Robot/NC 40 | . 20 20 Destroy Leader 150 | . 34 116 Successful Hack 12 | . 4 8 Disable Machine 45 | . . 45 Destroy Structure 59 | . . 59 Partial Spotted 30 | . . 30 Lose Combat Pursuer 150 | . 30 120 Influence Decreases 827 | . 208 619 Time Decay 727 | . 208 519 Lost Part 100 | . . 100 Squads Dispatched 3 | . 1 2 Investigation 2 | . . 2 Extermination . | . . . Reinforcement 1 | . 1 . Assault . | . . . Garrison . | . . . Intercept . | . . . Searches Triggered . | . . . Construction Impeded . | . . . Haulers Reinforced . | . . . Active Scanning Responses . | . . . Cargo Convoy Interrupts . | . . . Stealth | -11 -10 -9 --------- Run | Yrd Mat Mat Distress Signals 5 | . 2 3 Communications Jammed . | . . . Distress Signals . | . . . Times Spotted 64 | . 18 46 Peak Tracking Total 7 | . 7 6 Tactical Retreats 9 | . 2 7 Traps | -11 -10 -9 ------- Run | Yrd Mat Mat Traps Triggered 2 | . 1 1 Indirectly . | . . . Trap Hack Attempts . | . . . Triggered . | . . . Disarmed . | . . . Reprogrammed . | . . . Reused . | . . . Traps Extracted . | . . . Installed . | . . . Triggered . | . . . Machines | -11 -10 -9 ---------- Run | Yrd Mat Mat Machines Disabled 3 | . . 3 Max in Single Turn 1 | . . 1 Machines Repaired . | . . . Machines Dismantled . | . . . Machines Sabotaged . | . . . Overloaded Fab Kills . | . . . Hacking | -11 -10 -9 --------- Run | Yrd Mat Mat Machines Accessed 7 | . 2 5 Terminals 6 | . 2 4 Fabricators . | . . . Repair Stations 1 | . . 1 Recycling Units . | . . . Scanalyzers . | . . . Garrison Access . | . . . Total Hacks 16 | . 3 13 Successful 9 | . 1 8 Failed 7 | . 2 5 Catastrophic 2 | . . 2 Database Lockouts . | . . . Manual 5 | . 1 4 Terminals 10 | . 3 7 Fabricators . | . . . Repair Stations 6 | . . 6 Recycling Units . | . . . Scanalyzers . | . . . Garrison Access . | . . . Terminal Hacks 5 | . 1 4 Record 1 | . . 1 Prototype ID Bank 2 | . 1 1 Level Access Points 1 | . . 1 Alert Level 1 | . . 1 Fabricator Hacks . | . . . Repair Station Hacks 4 | . . 4 Scan Component 2 | . . 2 Repair 2 | . . 2 Recycling Unit Hacks . | . . . Scanalyzer . | . . . Garrison Access Hacks . | . . . Unauthorized Hacks . | . . . Terminals . | . . . Fabricators . | . . . Repair Stations . | . . . Recycling Units . | . . . Scanalyzers . | . . . Garrison Access . | . . . Data Cores Recovered . | . . . Used . | . . . Hacking Detections 5 | . 1 4 Full Trace Events 2 | . . 2 Feedback Events . | . . . Feedback Blocked . | . . . Robot Schematics Acquired . | . . . Robots Built . | . . . Authchips . | . . . Time . | . . . Total Robot Build Rating . | . . . Part Schematics Acquired . | . . . Parts Built . | . . . Authchips . | . . . Time . | . . . Total Part Build Rating . | . . . Part Studies Acquired . | . . . Parts Repaired 2 | . . 2 Time 52 | . . 52 Parts Recycled . | . . . Recycled Matter . | . . . Retrieved Matter . | . . . Retrieved Components . | . . . Parts Scanalyzed . | . . . Part Schematics Acquired . | . . . Parts Damaged . | . . . Bothacking | -11 -10 -9 ------------ Run | Yrd Mat Mat Used RIF Installer . | . . . Robots Hacked . | . . . Non-combat . | . . . Combat . | . . . Robot Hacks Applied . | . . . Relay Couplers Released . | . . . Fabnet Peak Effective % . | . . . Robots Rewired . | . . . Allies Hacked . | . . . Hacks Repelled . | . . . Allies | -11 -10 -9 -------- Run | Yrd Mat Mat Total Allies . | . . . Largest Group . | . . . Highest-Rated Group . | . . . Highest-Rated Ally . | . . . Total Orders . | . . . Ally Attacks . | . . . Total Damage . | . . . Kills . | . . . Allies Corrupted . | . . . Allies Melted . | . . . Intel | -11 -10 -9 ------- Run | Yrd Mat Mat Active Infowar (turns) 1885 | . . 1885 Optics 1885 | . . 1885 Sensors 11 | . . 11 Terrain 105 | . . 105 Structural 411 | . . 411 Seismic 604 | . . 604 Robot Analysis Total . | . . . Derelict Logs Recovered . | . . . Drone Launches . | . . . Drone Recoveries . | . . . Exploration | -11 -10 -9 ------------- Run | Yrd Mat Mat Turns Passed 3037 | 78 959 2000 Spaces Moved 1585 | 42 513 1030 Core 4 | 4 . . Treads 1367 | 38 513 816 Legs . | . . . Wheels 214 | . . 214 Hover . | . . . Flight . | . . . Fastest Speed 50 | 50 160 95 Average Speed 148 | 149 160 142 Slowest Speed 225 | 160 160 225 Overloaded Moves . | . . . Propulsion Burnouts . | . . . Robots Hopped . | . . . Potential Cave-ins 2 | . . 2 Cave-ins Triggered . | . . . Exploration Rate (%) 50 | 3 63 84 Regions Visited 2 Branch Regions . Pre-discovered Areas . | . . . Known Exits Taken . | . . . Unknown Exits Taken 2 | 1 1 . Scrap Searched . | . . . Spaces Dug 24 | . . 24 Terrain Destroyed 59 | . . 59 Melee 24 | . . 24 Projectile 1 | . . 1 AOE 34 | . . 34 Terrain Rammed . | . . . Walls Destroyed . | . . . Machines Disabled . | . . . Actions | -11 -10 -9 --------- Run | Yrd Mat Mat Total 2026 | 54 583 1389 Wait 215 | . 12 203 Move 1583 | 41 512 1030 Hop . | . . . Pick Up 24 | 5 7 12 Fast Attach 12 | 6 2 4 Attach 7 | . . 7 Detach 2 | . 1 1 Swap 22 | 1 3 18 Drop 13 | 1 3 9 Fire 84 | . 43 41 Melee 64 | . . 64 Ram . | . . . Kick . | . . . Crush . | . . . Escape Stasis . | . . . Rewire . | . . . Trap . | . . . Miscellaneous . | . . . Route ------- -11/Scrapyard -10/Materials (discovered 2 exits: *Mat x2) -9/Materials (discovered 6 exits: *Mat x3 / [*Min x2] / [*Sto]) History --------- Turn | Location | Event 41 | -11/Scrapyard | Discovered new exit (range 15) 79 | -11/Scrapyard | Entered Materials 307 | -10/Materials | Build established: Mutant 379 | -10/Materials | Discovered new exit (range 13) 572 | -10/Materials | Discovered new exit (range 15) 1038 | -10/Materials | Entered another Materials area 1038 | -9/Materials | Evolved 2 slots: Utility x2 1079 | -9/Materials | Repaired Lgt. Treads 1108 | -9/Materials | Repaired Lgt. Treads 1862 | -9/Materials | Discovered new exit (range 3) 1935 | -9/Materials | Build established: Scavenger-Mutant 1940 | -9/Materials | Identified exit to Materials 2236 | -9/Materials | Discovered new exit (range 11) 2366 | -9/Materials | Discovered new exit (range 18) 2399 | -9/Materials | Build established: Mutant 2456 | -9/Materials | Core integrity fell below 50% 2820 | -9/Materials | Lost 3 parts (1p1u1w) 2828 | -9/Materials | Discovered new exit (range 9) 2950 | -9/Materials | Core integrity fell below 20% 3038 | -9/Materials | Destroyed by G-34 Mercenary with Small Laser Last Messages --------------- 03010_ Sneak attack on U-05 Engineer. 03010_ U-05 Engineer suffers critical hit (Smash). 03010_ Destroyed Wheel. 03010_ Destroyed Terrain Scanner. 03010_ Destroyed Structural Scanner. 03010_ U-05 Engineer system corrupted by crushing effect. 03010_ Lgt. Ion Engine fried. 03010_ Welding Torch fried. 03010_ U-05 Engineer destroyed. 03018_ G-34 Mercenary knocked back. 03028_ Destroyed Heat Sink. 03028_ G-34 Mercenary system corrupted by crushing effect. 03029_ G-34 Mercenary system terminally corrupted. 03034_ Lrg. Matter Pod destroyed. 03034_ G-34 Mercenary knocked back. 03037_ Y-45 Defender destroyed. Map ----- +----------------------------------------------------+ | #???????????????????????????????????????????? | | #???????????????????????????????????????????? | | ##########??????????????????????????????????? | | # #??????????????????????????????????? | | # """ #??????????????????????????????????? | | # """ #??????????????????????????????????? | | # """ #??????????????????????????????????? | | # #??????????????????????????????????? | | + #??????????????????????????????????? | | # !! #??????????????????????????????????? | | # !! #?????"""??????????????????????????? | | # #????"""""?????????????????????????? | | ###/###########????""""??????????????????????????? | | #??????? ""???????????????????????????? | | " """ """ #######?% ????????????????????????????? | | " """ """ # ##+##########????????????????????? | | " """ """ # w ???????????????????? | | % +% % #????????????????????????? | | ! %* # #????????????????????????? | | ########### [ #????????????????????????? | | ?????????## """ ####?????????????????????? | | ?#######??# """ !##????????????????????? | | ##"""""""?# """ !#????????????????????? | | ##" !"| "## Y!g #????????????????????? | | ##" "## %%!g!#????????????????????? | | """ ##@=!#????????????????????? | | < """ ## !##????????????????????? | | """ ######????????????????????? | | # # ############??????????????? | | ######### ### ########??????????????? | | [ """ # ##??????????????? | | """ # """##??????????????? | | """ # """ R"##??????????????? | | / """ """##??#???????????? | | # """ ##??????????????? | | +###############+###% # ##??????????????? | | ????????##### # %# ##??????????????? | | ????????????# """ # # ##??????#???????? | | ????????????# """ # %###############+###???????? | | ????????????# """ # ==#### !! ????????? | | ????????????# # ==##?# !! "T"??????????? | | ????????????# =# ##?# ! ??????#?????? | | ????????????######## ##?# *??????????? ? ? | | ??????????????????## !!##??#+##????#?????????? | | ??????????????????## !!##?## ###########?????? | | ??????????????????## %######??# ## #?????? | | ?????????########### ######?## ## """ #?????? | | ?????????########### ##?????# # """ #??##+# | | ?????????## # = ##?????# + """ #### | | ?????????##" """ + %=######## # / < | +----------------------------------------------------+ Best States ------------- Heat Dissipation 28 Energy Generation 14 Energy Capacity 450 Matter Stores 450 Matter Capacity 450 Sight Range 18 Robot Scan Range 14 Terrain Scan Range 14 Terrain Scan Density 10 Armor Coverage 150 Evasion (%) 41 Recoil Reduction 2 Offensive Hacking 10 Item Schematics ----------------- None Robot Schematics ------------------ None Fabricated ------------ Nothing Repaired ---------- Lgt. Treads | 15% | -9/Materials Lgt. Treads | 2% | -9/Materials Studied --------- None Alien Tech Used ----------------- None Achievements -------------- None Challenges ------------ None Game ------ Seed RemotePiercingPendant Manual? 0 Play Time 00:29:43 Cumulative 21.7 hours Start 2026.09.22 @ 03:11:49 End 2026.09.22 @ 23:44:26 Sessions 3 Manual Loads 0 Difficulty Rogue Special Mode None Game No. 48 Rogue 48 Adventurer 0 Explorer 0 Win Type - Total 0 Types 0/0/0/0/0/0/0/0/0/0 Lore% 12 Gallery% 20 Achievement% 17 Wizard Run 0 Options --------- Layout 1 ASCII 0 Keyboard 0 Movement Arrows Keybinds 0 Fullscreen 2 Font 24/Smallcaps Map View 50x35 Zoom Use 0% Tactical HUD 1 Map Filters NONE Filters NONE Steam 1 RUN: ffcadf08-7098-490e-8733-ee82166abd64